Cogmind - Beta 17.1 @@@ ROGUE MODE // 2026.09.19 @ 03:42:52 Player: muppy Result: Destroyed by Y-45 Defender with Heavy Assault Rifle Performance ------------- Evolutions (0) 0 Regions Visited (2) 400 Robots Destroyed (13) 65 Value Destroyed (334) 334 Prototype IDs (0) 0 Alien Tech Used (0) 0 Bonus (0) 0 TOTAL SCORE: 799 Bonus ------- None Cogmind --------- Core Integrity 0/250 Matter 255/300 Energy 199/200 System Corruption 0% Temperature Cool (9) Movement Walking (120) Location -10/Subcaves Parts ------- > --- POWER (1) -------- Subdweller Power Source > --- PROPULSION (2) --- Aluminum Leg > --- UTILITY (2) ------ Subdweller Optics Signal Interpreter > --- WEAPON (2) ------- (None) > --- INVENTORY (5) ---- Small Storage Unit Makeshift Hacking Suite Peak State ------------ > --- POWER ------------ Subdweller Power Source > --- PROPULSION ------- Aluminum Leg Aluminum Leg > --- UTILITY ---------- Subdweller Optics Signal Interpreter > --- WEAPON ----------- Battle Rifle > --- INVENTORY -------- Small Storage Unit Makeshift Hacking Suite [Rating: 9] Favorites ----------- Power Ion Engine Engine Ion Engine Propulsion Aluminum Leg Leg Aluminum Leg Utility Small Storage Unit Device Subdweller Optics Storage Small Storage Unit Processor Signal Interpreter Weapon Medium Laser Energy Gun Medium Laser Ballistic Gun Battle Rifle Build | -11 -10 -10 ------- Run | Yrd Mat Sub Slots Evolved . | . . . Power . | . . . Propulsion . | . . . Utility . | . . . Weapon . | . . . Parts Attached 10 | 6 . 4 Power 2 | 1 . 1 Engine 2 | 1 . 1 Core . | . . . Reactor . | . . . Propulsion 2 | 2 . . Treads . | . . . Leg 2 | 2 . . Wheel . | . . . Hover . | . . . Flight . | . . . Utility 3 | 1 . 2 Device 1 | . . 1 Storage 1 | 1 . . Processor 1 | . . 1 Hackware . | . . . Protection . | . . . Artifact . | . . . Weapon 3 | 2 . 1 Energy Gun 2 | 2 . . Energy Cannon . | . . . Ballistic Gun 1 | . . 1 Ballistic Cannon . | . . . Launcher . | . . . Special Weapon . | . . . Impact Weapon . | . . . Slashing Weapon . | . . . Piercing Weapon . | . . . Special Melee Weapon . | . . . Unidentified Prototypes . | . . . Parts Lost 5 | . . 5 Power 1 | . . 1 Propulsion 1 | . . 1 Utility . | . . . Weapon 3 | . . 3 Highest Loss Streak 3 | . . 3 To Critical Strikes . | . . . Average Backups . | . . . Power . | . . . Propulsion . | . . . Utility . | . . . Weapon . | . . . Tool/Special . | . . . Unused Backups 1 | . . 1 Power . | . . . Propulsion . | . . . Utility 1 | . . 1 Weapon . | . . . Tool/Special . | . . . Average Slot Usage (%) 88 | . 85 89 Engine 12 | . 14 12 Leg 27 | . 28 27 Device 9 | . . 12 Storage 10 | . 14 8 Processor 3 | . . 5 Energy Gun 22 | . 28 20 Peak Build Rating 9 | 6 6 9 Average Rating 6 | 3 6 7 On Entrance 4 | . 6 6 Avg Prop Armor Cover (%) . | . . . Naked Turns . | . . . Heaviest Build 15 | 13 13 15 Greatest Support 20 | 20 20 20 Greatest Overweight (x) . | . . . Average Overweight (x) . | . . . Largest Inventory Capacity 8 | 8 8 8 Average Capacity 6 | 5 8 6 Most Carried 3 | 2 . 3 Average Carried . | 1 . . Final Capacity 8 | 8 8 5 Final Carried 2 | . . 2 Class Distribution -------------------- 100% | Mutant Dominant Class ---------------- Mutant | -10/Materials Mutant | -10/Subcaves Resources | -11 -10 -10 ----------- Run | Yrd Mat Sub Matter Collected 290 | 103 140 47 Remotely . | . . . Salvage Created 403 | . 130 273 Parts 34 | . 9 25 Haulers Intercepted . | . . . Recyclers Shooed . | . . . Parts Field Recycled . | . . . Retrieved Matter . | . . . Parts Self-Destructed 10 | . . 10 Prevented . | . . . Parts Restored . | . . . Kills | -11 -10 -10 ------- Run | Yrd Mat Sub Combat Hostiles Destroyed 12 | . 4 8 Guns 12 | . 4 8 Classes Destroyed 4 | . 3 1 Watcher 1 | . 1 . Swarmer 5 | . 2 3 Grunt 2 | . 2 . Subdweller 5 | . . 5 Best Kill Streak 3 | . 2 3 Combat Bots Only 3 | . 2 3 Max Kills in Single Turn 1 | . 1 1 Gunslinging . | . . . Exploded . | . . . Melee . | . . . Uniques/NPCs Destroyed . | . . . Combat | -11 -10 -10 -------- Run | Yrd Mat Sub Hostile Shots Fired 71 | . 14 57 Missed 18 | . 4 14 Hits 53 | . 10 43 Projectile 53 | . 10 43 Critical Strikes 2 | . . 2 Damage Taken 824 | . 103 721 Core 255 | . 42 213 Absorbed by Shields . | . . . Core Remaining (%) 100 | 100 . . Volleys Fired 48 | . 11 37 Largest 2 | . 2 2 Hottest 90 | . 90 90 Shots Fired 80 | . 22 58 Gun 80 | . 22 58 Cannon . | . . . Launcher . | . . . Special . | . . . Kinetic 15 | . . 15 Thermal 65 | . 22 43 Explosive . | . . . Electromagnetic . | . . . Robot Hit Streak 11 | . 3 11 Robot Miss Streak 3 | . 3 2 Penetration Max . | . . . Secondary Targets 1 | . . 1 Max Gunslinging Chain 1 | . . 1 Shots Hit Robots 55 | . 9 46 Core Hits 24 | . 7 17 Critical Kills . | . . . Critical Parts Destroyed . | . . . Critical Strikes 3 | . . 3 Burn 3 | . . 3 Melee Attacks . | . . . Impact . | . . . Slashing . | . . . Piercing . | . . . Sneak Attacks . | . . . Combat Hostiles . | . . . Follow-up Attacks . | . . . Damage Inflicted 563 | . 133 430 Guns 563 | . 133 430 Cannons . | . . . Explosions . | . . . Melee . | . . . Ramming . | . . . Kinetic 158 | . . 158 Thermal 405 | . 133 272 Explosive . | . . . Electromagnetic . | . . . Impact . | . . . Slashing . | . . . Piercing . | . . . Highest Corruption . | . . . Average Corruption . | . . . Corruption Purged . | . . . Corruption Blocked . | . . . Overload Shots . | . . . Overflow Damage . | . . . Projectiles . | . . . Explosions . | . . . Melee . | . . . Knockbacks . | . . . Impact . | . . . Kinetic . | . . . Secondary . | . . . Self-Inflicted Damage . | . . . Shots . | . . . Rammed . | . . . Targets Rammed . | . . . Kicked . | . . . Crushed . | . . . Highest Temperature 174 | . 174 . Average Temperature 65 | . 65 . Received Heat Transfer 216 | . 48 168 Siege Activations . | . . . Martial Activations . | . . . Shielding Activations . | . . . Robots Disrupted . | . . . Combat Hostiles . | . . . Robots Corrupted . | . . . Combat Hostiles . | . . . Parts Fried . | . . . Impact Corruptions . | . . . Robots Melted . | . . . Combat Hostiles . | . . . Parts Melted 2 | . 1 1 Heat Transferred 1265 | . 324 941 Parts Sabotaged . | . . . Parts Stolen . | . . . Parts Stripped . | . . . Power Chain Reactions . | . . . Alert | -11 -10 -10 ------- Run | Yrd Mat Sub Maximum Alert Level . | . . . Low Security (%) 100 | 100 100 . Level 1 . | . . . Level 2 . | . . . Level 3 . | . . . Level 4 . | . . . Level 5 . | . . . High Security . | . . . Max Security . | . . . Peak Influence 50 | . 50 . Initial . | . . . Average 21 | . 28 . Influence Increases 168 | . 98 70 Destroy 0b10 Robot/C 140 | . 80 60 Destroy 0b10 Robot/NC 5 | . 5 . Destroy Leader 22 | . 12 10 Destroy Structure 1 | . 1 . Influence Decreases 116 | . 60 56 Entered New Map 19 | . . 19 Time Decay 87 | . 60 27 Lost Part 10 | . . 10 Squads Dispatched 2 | . 2 . Investigation 1 | . 1 . Extermination . | . . . Reinforcement 1 | . 1 . Assault . | . . . Garrison . | . . . Intercept . | . . . Searches Triggered . | . . . Construction Impeded . | . . . Haulers Reinforced . | . . . Active Scanning Responses . | . . . Cargo Convoy Interrupts . | . . . Stealth | -11 -10 -10 --------- Run | Yrd Mat Sub Distress Signals 1 | . 1 . Communications Jammed . | . . . Distress Signals . | . . . Times Spotted 21 | . 11 10 Peak Tracking Total 5 | . 5 4 Tactical Retreats . | . . . Traps | -11 -10 -10 ------- Run | Yrd Mat Sub Traps Triggered . | . . . Indirectly . | . . . Trap Hack Attempts . | . . . Triggered . | . . . Disarmed . | . . . Reprogrammed . | . . . Reused . | . . . Traps Extracted . | . . . Installed . | . . . Triggered . | . . . Machines | -11 -10 -10 ---------- Run | Yrd Mat Sub Machines Disabled . | . . . Max in Single Turn . | . . . Machines Repaired . | . . . Machines Dismantled . | . . . Machines Sabotaged . | . . . Overloaded Fab Kills . | . . . Hacking | -11 -10 -10 --------- Run | Yrd Mat Sub Machines Accessed . | . . . Terminals . | . . . Fabricators . | . . . Repair Stations . | . . . Recycling Units . | . . . Scanalyzers . | . . . Garrison Access . | . . . Total Hacks . | . . . Successful . | . . . Failed . | . . . Catastrophic . | . . . Database Lockouts . | . . . Manual . | . . . Terminals . | . . . Fabricators . | . . . Repair Stations . | . . . Recycling Units . | . . . Scanalyzers . | . . . Garrison Access . | . . . Terminal Hacks . | . . . Fabricator Hacks . | . . . Repair Station Hacks . | . . . Recycling Unit Hacks . | . . . Scanalyzer . | . . . Garrison Access Hacks . | . . . Unauthorized Hacks . | . . . Terminals . | . . . Fabricators . | . . . Repair Stations . | . . . Recycling Units . | . . . Scanalyzers . | . . . Garrison Access . | . . . Data Cores Recovered . | . . . Used . | . . . Hacking Detections . | . . . Full Trace Events . | . . . Feedback Events . | . . . Feedback Blocked . | . . . Robot Schematics Acquired . | . . . Robots Built . | . . . Authchips . | . . . Time . | . . . Total Robot Build Rating . | . . . Part Schematics Acquired . | . . . Parts Built . | . . . Authchips . | . . . Time . | . . . Total Part Build Rating . | . . . Part Studies Acquired . | . . . Parts Repaired . | . . . Time . | . . . Parts Recycled . | . . . Recycled Matter . | . . . Retrieved Matter . | . . . Retrieved Components . | . . . Parts Scanalyzed . | . . . Part Schematics Acquired . | . . . Parts Damaged . | . . . Bothacking | -11 -10 -10 ------------ Run | Yrd Mat Sub Used RIF Installer . | . . . Robots Hacked . | . . . Non-combat . | . . . Combat . | . . . Robot Hacks Applied . | . . . Relay Couplers Released . | . . . Fabnet Peak Effective % . | . . . Robots Rewired . | . . . Allies Hacked . | . . . Hacks Repelled . | . . . Allies | -11 -10 -10 -------- Run | Yrd Mat Sub Total Allies . | . . . Largest Group . | . . . Highest-Rated Group . | . . . Highest-Rated Ally . | . . . Total Orders . | . . . Ally Attacks . | . . . Total Damage . | . . . Kills . | . . . Allies Corrupted . | . . . Allies Melted . | . . . Intel | -11 -10 -10 ------- Run | Yrd Mat Sub Active Infowar (turns) 387 | . . 387 Optics 387 | . . 387 Robot Analysis Total . | . . . Derelict Logs Recovered . | . . . Drone Launches . | . . . Drone Recoveries . | . . . Exploration | -11 -10 -10 ------------- Run | Yrd Mat Sub Turns Passed 629 | 51 146 432 Spaces Moved 409 | 39 95 275 Core 10 | 10 . . Treads . | . . . Legs 399 | 29 95 275 Wheels . | . . . Hover . | . . . Flight . | . . . Fastest Speed 50 | 50 120 120 Average Speed 118 | 102 120 120 Slowest Speed 120 | 120 120 120 Overloaded Moves . | . . . Propulsion Burnouts . | . . . Robots Hopped . | . . . Potential Cave-ins . | . . . Cave-ins Triggered . | . . . Exploration Rate (%) 16 | 3 25 20 Regions Visited 2 Branch Regions 1 Pre-discovered Areas 1 | . . 1 Known Exits Taken . | . . . Unknown Exits Taken 2 | 1 1 . Scrap Searched 3 | . . 3 Spaces Dug . | . . . Terrain Destroyed . | . . . Melee . | . . . Projectile . | . . . AOE . | . . . Terrain Rammed . | . . . Walls Destroyed . | . . . Machines Disabled . | . . . Actions | -11 -10 -10 --------- Run | Yrd Mat Sub Total 477 | 50 105 322 Wait . | . . . Move 407 | 38 94 275 Hop . | . . . Pick Up 11 | 6 . 5 Fast Attach . | . . . Attach 10 | 6 . 4 Detach 1 | . . 1 Swap . | . . . Drop . | . . . Fire 48 | . 11 37 Melee . | . . . Ram . | . . . Kick . | . . . Crush . | . . . Escape Stasis . | . . . Rewire . | . . . Trap . | . . . Miscellaneous . | . . . Route ------- -11/Scrapyard -10/Materials (discovered 2 exits: [*Mat] / [*Sub]) -10/Subcaves History --------- Turn | Location | Event 14 | -11/Scrapyard | Discovered new exit (range 15) 52 | -11/Scrapyard | Entered Materials 53 | -10/Materials | Met a group of wandering Federalists 167 | -10/Materials | Discovered new exit (range 16) 179 | -10/Materials | Discovered new exit (range 12) 198 | -10/Materials | Entered Subcaves 199 | -10/Subcaves | Approached by a straggling Scientist 302 | -10/Subcaves | Build established: Mutant 310 | -10/Subcaves | Shifting Twisted Machinery released Shrapnel Trap 408 | -10/Subcaves | Learned location of Zion (-7) 408 | -10/Subcaves | Met a Zionite searching for "candidates" 552 | -10/Subcaves | Shifting Twisted Machinery released Mak. Hacking Suite 605 | -10/Subcaves | Core integrity fell below 50% 625 | -10/Subcaves | Core integrity fell below 20% 630 | -10/Subcaves | Destroyed by Y-45 Defender with Heavy Assault Rifle Last Messages --------------- yourself, or using 's', to view a stat summary, current resistances, lists of any schematics, analyses, or studies acquiring during your run, or access context help for more stats and mechanics. Mak. Hacking Suite falls loose from the Twisted Machinery. 00563_ Acquired Mak. Hacking Suite. 00597_ Med. Laser destroyed. 00602_ Aluminum Leg destroyed. 00605_ S-10 Pest destroyed. 00611_ Flight Unit fries itself beyond repair. 00612_ S-10 Pest destroyed. 00619_ Lgt. Ion Engine fries itself beyond repair. 00619_ Lgt. Assault Rifle fries itself beyond repair. 00621_ Lgt. Ion Engine fries itself beyond repair. 00630_ Battle Rifle destroyed. Map ----- +----------------------------------------------------+ | #?### #????????????????????????????????????????? | | "#??# ##????????????????????????????????????????? | | ""#?## ###???????????????????????????????????????? | | ###?#"" #???????????????????????????????????????? | | ????#""" #???????????????????????????????????????? | | ???##""" #???????????????????????????????????????? | | ???#"""" #???????????????????????????????????????? | | ???# " #???????????????????????????????????????? | | ???##""" #???????????????????????????????????????? | | ????#"" ##???????????????????????????????????????? | | ????##" ##???????????????????????????????????????? | | ?????#" #???????????????????????????????????????? | | ??#"## ####?#####??????#####???????????????????? | | ??# ### ####?## ###?????????????????? | | ??## ### ####??##?? ???????? | | ???#### ## ## ???????? | | ??????## ## ## ???????? | | ???????## ######### ???????? | | ????????####??????## ##?????????? | | ?????????????????## ##??????????? | | ????????????????## ###???????????? | | ????????????????# ###???????????? | | ????????????????###### % ##??????????? | | ?????????????????????## %% #??????????? | | ?????????????????????## ## #?????????? | | ?????????????????????# @ #?? ???????? | | ????????????????????## #####??? ????????? | | ????????????????????# #????????????????????? | | ???????????????* Y #????????????????????? | | ?????????# [ ?????????????????? | | ?????????# # # #??????????????? | | ????????# ??#?# ### ###??????????????? | | ???????# ?????? #??? ##????????????????? | | ??????????????? ####???? ###?????????????????? | | ?????????????? #???????? ##???????????????????? | | ?????????????# #????????? #????????????????????? | | ????????????# ?????????? ##????????????????????? | | ????????????# ??????????? #?????????????????????? | | ????????????# ????????????##?????????????????????? | | ???????????? #???????????????????????????????????? | | ??????????? ????????????????????????????????????? | | ??????????#??????????????????????????????????????? | | ?????????????????????????????????????????????????? | | ?????????????????????????????????????????????????? | | ?????????????????????????????????????????????????? | | ?????????????????????????????????????????????????? | | ?????????????????????????????????????????????????? | | ?????????????????????????????????????????????????? | | ?????????????????????????????????????????????????? | | ?????????????????????????????????????????????????? | +----------------------------------------------------+ Best States ------------- Heat Dissipation 25 Energy Generation 15 Energy Capacity 250 Matter Stores 300 Matter Capacity 300 Sight Range 21 Terrain Scan Density 10 Evasion (%) 55 Item Schematics ----------------- None Robot Schematics ------------------ None Fabricated ------------ Nothing Repaired ---------- Nothing Studied --------- None Alien Tech Used ----------------- None Achievements -------------- None Challenges ------------ None Game ------ Seed ConceptArmorCharge Manual? 0 Play Time 00:16:35 Cumulative 8.7 hours Start 2026.09.19 @ 03:26:55 End 2026.09.19 @ 03:42:52 Sessions 1 Manual Loads 0 Difficulty Rogue Special Mode None Game No. 19 Rogue 19 Adventurer 0 Explorer 0 Win Type - Total 0 Types 0/0/0/0/0/0/0/0/0/0 Lore% 6 Gallery% 14 Achievement% 9 Wizard Run 0 Options --------- Layout 1 ASCII 0 Keyboard 0 Movement Mouse Keybinds 0 Fullscreen 1 Font 24/Smallcaps Map View 50x40 Zoom Use 0% Tactical HUD 1 Map Filters NONE Filters NONE Steam 1 RUN: b74a2a28-ec81-4c0a-92f3-c9f20aba002f